bitfinex-derivatives/quotes_BNBF0:USTF0_20230831
["timestamp","ask_amount","ask_price","bid_price","bid_amount"]
[1693507099362,0.14948507,217.55,217.19,0.18792915]
[1693507099562,0.14948507,217.55,217.2,0.18792915]
[1693507099762,0.14948507,217.55,217.19,0.18792915]
[1693507099963,0.14948507,217.55,217.2,0.18792915]
[1693507100164,0.14948507,217.55,217.21,0.18792915]
[1693507100364,0.14948507,217.54,217.22,0.18792915]
[1693507100563,0.14948507,217.54,217.23,0.18792915]
[1693507100763,0.14948507,217.54,217.19,0.18792915]
[1693507100963,0.14948507,217.54,217.2,0.18792915]
[1693507101162,0.14948507,217.54,217.21,0.18792915]
[1693507101362,0.14948507,217.54,217.18,0.07508405]
[1693507101363,0.14948507,217.54,217.22,0.18792915]
[1693507101562,0.14948507,217.54,217.23,0.18792915]
[1693507101759,0.14948507,217.54,217.19,0.18792915]
[1693507101961,0.14948507,217.54,217.2,0.18792915]
[1693507102160,0.14948507,217.54,217.19,0.18792915]
[1693507102362,0.14948507,217.54,217.2,0.18792915]
[1693507102563,0.14948507,217.54,217.21,0.18792915]
[1693507102760,0.14948507,217.54,217.22,0.18792915]
[1693507102964,0.14948507,217.54,217.23,0.18792915]
[1693507103163,0.14948507,217.54,217.24,0.18792915]
[1693507103365,0.14948507,217.54,217.18,0.07508405]
[1693507103366,0.14948507,217.54,217.25,0.18792915]
[1693507103566,0.14948507,217.54,217.18,0.07508405]
[1693507103567,0.14948507,217.54,217.19,0.18792915]
[1693507103763,0.14948507,217.54,217.2,0.18792915]
[1693507104070,0.14948507,217.54,217.21,0.18792915]
[1693507104268,0.14948507,217.54,217.22,0.18792915]
[1693507104469,0.14948507,217.54,217.19,0.18792915]
[1693507104769,0.14948507,217.54,217.2,0.18792915]
[1693507105064,0.14948507,217.54,217.21,0.18792915]
[1693507105268,0.14948507,217.54,217.22,0.18792915]
[1693507105468,0.14948507,217.54,217.19,0.18792915]
[1693507105669,0.14948507,217.54,217.2,0.18792915]
[1693507105868,0.14948507,217.54,217.21,0.18792915]
[1693507106068,0.14948507,217.53,217.19,0.18792915]
[1693507106268,0.14948507,217.53,217.2,0.18792915]
[1693507106468,0.14948507,217.53,217.18,0.07508405]
[1693507106469,0.14948507,217.53,217.21,0.18792915]
[1693507106667,0.14948507,217.53,217.19,0.18792915]
[1693507106869,0.14948507,217.53,217.2,0.18792915]
[1693507107069,0.14948507,217.53,217.21,0.18792915]
[1693507107369,0.14948507,217.53,217.22,0.18792915]
[1693507107568,0.14948507,217.53,217.18,0.07508405]
[1693507107569,0.14948507,217.53,217.23,0.18792915]
[1693507107769,0.14948507,217.53,217.24,0.18792915]
[1693507108070,0.14948507,217.53,217.25,0.18792915]
[1693507108371,0.14948507,217.53,217.18,0.07508405]
[1693507108569,0.14948507,217.53,217.19,0.18795871]
[1693507113274,0.14948507,217.53,217.19,0.26304276]
[1693507113469,0.14948507,217.53,217.2,0.18795871]
[1693507113676,0.14948507,217.53,217.19,0.18795871]
[1693507113879,0.14948507,217.53,217.2,0.18795871]
[1693507114073,0.14948507,217.53,217.19,0.18795871]
[1693507114274,0.14948507,217.53,217.2,0.18795871]
[1693507115269,0.14948507,217.53,217.19,0.26304276]
[1693507115474,0.14948507,217.53,217.2,0.18795871]
[1693507116081,0.14948507,217.53,217.21,0.18795871]
[1693507116279,0.14948507,217.53,217.19,0.18795871]
[1693507116880,0.14948507,217.53,217.19,0.26304276]
[1693507117082,0.14948507,217.53,217.2,0.18795871]
[1693507119283,0.14948507,217.52,217.2,0.18795871]
[1693507120388,0.14948507,217.52,217.2,0.26304276]
[1693507120584,0.14948507,217.52,217.21,0.18795871]
[1693507122088,0.14948507,217.51,217.21,0.18795871]
[1693507122785,0.14948507,217.5,217.21,0.18795871]
[1693507123185,0.14948507,217.5,217.22,0.18795871]
[1693507123487,0.14948507,217.5,217.23,0.18795871]
[1693507123687,0.14948507,217.5,217.24,0.18795871]
[1693507123987,0.14948507,217.5,217.25,0.18795871]
[1693507124188,0.14948507,217.5,217.2,0.07508405]
[1693507124381,0.14948507,217.49,217.21,0.18799249]
[1693507125388,0.14948507,217.49,217.21,0.26307654]
[1693507125586,0.14948507,217.49,217.22,0.18799249]
[1693507126487,0.14948507,217.48,217.22,0.18799249]
[1693507127288,0.14948507,217.47,217.23,0.07508405]
[1693507127587,0.14948507,217.47,217.24,0.18799249]
[1693507135992,0.14948507,217.48,217.24,0.26307654]
[1693507136186,0.14948507,217.48,217.25,0.18799249]
[1693507138600,0.14948507,217.47,217.25,0.18799249]
[1693507138899,0.14948507,217.47,217.23,0.07508405]
[1693507139101,0.14948507,217.47,217.24,0.18796176]
[1693507143297,0.14948507,217.46,217.22,0.07508405]
[1693507143504,0.14948507,217.46,217.23,0.1879866]
[1693507143801,0.14948507,217.47,217.23,0.1879866]
[1693507144000,0.14948507,217.46,217.23,0.1879866]
[1693507145000,0.14948507,217.46,217.22,0.1879866]
[1693507145302,0.14948507,217.46,217.23,0.18801722]
[1693507145502,0.14948507,217.46,217.22,0.18801722]
[1693507145703,0.14948507,217.46,217.23,0.18801994]
[1693507145897,0.14948507,217.46,217.22,0.18801994]
[1693507146202,0.14948507,217.46,217.23,0.18801922]
[1693507146402,0.14948507,217.46,217.22,0.18801922]
[1693507146602,0.14948507,217.46,217.23,0.1880186]
[1693507146802,0.14948507,217.46,217.21,0.07508405]
[1693507147000,0.14948507,217.46,217.22,0.18800401]
[1693507151407,0.14948507,217.47,217.22,0.18800401]
[1693507153005,0.14948507,217.47,217.22,0.26308806]
[1693507153206,0.14948507,217.47,217.23,0.18800401]
[1693507157910,0.49828359,217.44,217.17,0.07508405]
[1693507158109,0.14948507,217.4,217.15,0.07508405]
[1693507158309,0.14948507,217.4,217.16,0.18826107]
[1693507158711,0.14948507,217.41,217.16,0.18826107]
[1693507159009,0.14948507,217.42,217.17,0.18826107]
[1693507159211,0.14948507,217.42,217.13,0.07508405]
[1693507159512,0.14948507,217.42,217.14,0.18824387]
[1693507159705,0.14948507,217.43,217.14,0.18824387]
[1693507159906,0.14948507,217.43,217.13,0.18824387]
[1693507160107,0.14948507,217.43,217.14,0.18824387]
[1693507160303,0.14948507,217.43,217.15,0.18824387]
[1693507160510,0.14948507,217.43,217.16,0.18824387]
[1693507160707,0.14948507,217.44,217.13,0.18824387]
[1693507161010,0.14948507,217.44,217.14,0.18824387]
[1693507161210,0.14948507,217.44,217.15,0.18824387]
[1693507161410,0.14948507,217.44,217.12,0.18824387]
[1693507161610,0.14948507,217.45,217.13,0.18824387]
[1693507161806,0.14948507,217.45,217.14,0.18824387]
[1693507162009,0.14948507,217.45,217.11,0.26332792]
[1693507162210,0.14948507,217.45,217.12,0.18824387]
[1693507162609,0.14948507,217.46,217.12,0.18824387]
[1693507163910,0.14948507,217.46,217.11,0.18824387]
[1693507164112,0.14948507,217.46,217.12,0.18824387]
[1693507164412,0.14948507,217.46,217.1,0.07508405]
[1693507164413,0.14948507,217.46,217.13,0.18824387]
[1693507164609,0.14948507,217.46,217.14,0.18824387]
[1693507164810,0.14948507,217.46,217.1,0.07508405]
[1693507164811,0.14948507,217.46,217.11,0.18824387]
[1693507165011,0.14948507,217.46,217.12,0.18824387]
[1693507165210,0.14948507,217.46,217.11,0.18824387]
[1693507165509,0.14948507,217.46,217.12,0.18824387]
[1693507165713,0.14948507,217.47,217.13,0.18824387]
[1693507165906,0.14948507,217.47,217.14,0.18824387]
[1693507166108,0.14948507,217.47,217.1,0.18824387]
[1693507166306,0.14948507,217.47,217.11,0.18824387]
[1693507166506,0.14948507,217.47,217.1,0.18824387]
[1693507166811,0.14948507,217.47,217.11,0.18824387]
[1693507167005,0.14948507,217.47,217.09,0.07508405]
[1693507167006,0.14948507,217.47,217.1,0.18824387]
[1693507167204,0.14948507,217.47,217.11,0.18824387]
[1693507167412,0.14948507,217.47,217.12,0.18824387]
[1693507167713,0.14948507,217.47,217.09,0.07508405]
[1693507167714,0.14948507,217.47,217.13,0.18824387]
[1693507167911,0.14948507,217.47,217.14,0.18824387]
[1693507168112,0.14948507,217.47,217.15,0.18824387]
[1693507168311,0.14948507,217.47,217.1,0.18824387]
[1693507168510,0.14948507,217.47,217.11,0.18824387]
[1693507168712,0.14948507,217.47,217.12,0.18824387]
[1693507168912,0.14948507,217.47,217.1,0.18824387]
[1693507169111,0.14948507,217.47,217.11,0.18824387]
[1693507169312,0.14948507,217.47,217.12,0.18824387]
[1693507169509,0.14948507,217.47,217.1,0.18824387]
[1693507169711,0.14948507,217.47,217.11,0.18824387]
[1693507169912,0.14948507,217.47,217.12,0.18824387]
[1693507170216,0.14948507,217.47,217.13,0.18824387]
[1693507170410,0.14948507,217.47,217.08,0.07508405]
[1693507170411,0.14948507,217.47,217.14,0.18824387]
[1693507170609,0.14948507,217.47,217.09,0.18824387]
[1693507170809,0.14948507,217.47,217.1,0.18824387]
[1693507171014,0.14948507,217.47,217.11,0.18824387]
[1693507171214,0.14948507,217.47,217.12,0.18824387]
[1693507171408,0.14948507,217.47,217.08,0.07508405]
[1693507171409,0.14948507,217.47,217.13,0.18824387]
[1693507171615,0.14948507,217.47,217.09,0.18824387]
[1693507171813,0.14948507,217.47,217.1,0.18824387]
[1693507172015,0.14948507,217.47,217.11,0.18824387]
[1693507172210,0.14948507,217.47,217.12,0.18824387]
[1693507172409,0.14948507,217.47,217.09,0.26332792]
[1693507172610,0.14948507,217.47,217.1,0.18824387]
[1693507178817,0.14948507,217.46,217.1,0.26332792]
[1693507179017,0.14948507,217.46,217.11,0.18824387]
[1693507179520,0.14948507,217.47,217.11,0.18824387]
[1693507181725,0.14948507,217.46,217.11,0.18824387]
[1693507183716,0.14948507,217.46,217.11,0.26332792]
[1693507183920,0.14948507,217.46,217.12,0.18824387]
[1693507185025,0.14948507,217.47,217.12,0.26332792]
[1693507185226,0.14948507,217.47,217.13,0.18824387]
[1693507185623,0.14948507,217.47,217.11,0.07508405]
[1693507185624,0.14948507,217.47,217.14,0.18824387]
[1693507185818,0.14948507,217.46,217.13,0.18824387]
[1693507186024,0.14948507,217.46,217.14,0.18824387]
[1693507186220,0.14948507,217.47,217.15,0.18824387]
[1693507186525,0.14948507,217.47,217.16,0.18824387]
[1693507186828,0.14948507,217.46,217.17,0.18824387]
[1693507187023,0.14948507,217.46,217.13,0.18824387]
[1693507187327,0.14948507,217.46,217.14,0.18824387]
[1693507187520,0.14948507,217.46,217.13,0.18824387]
[1693507187724,0.14948507,217.46,217.14,0.18824387]
[1693507188725,0.14948507,217.45,217.14,0.18824387]
[1693507189629,0.14948507,217.44,217.14,0.18824387]
[1693507190224,0.99656719,217.5,217.14,0.26332792]
[1693507190225,0.14948507,217.45,217.14,0.26332792]
[1693507190428,0.14948507,217.45,217.15,0.18824387]
[1693507190632,0.14948507,217.44,217.15,0.26332792]
[1693507190931,0.14948507,217.44,217.16,0.18824387]
[1693507191730,0.14948507,217.44,217.16,0.26332792]
[1693507191930,0.14948507,217.44,217.17,0.18824387]
[1693507192626,0.07509482,217.4,217.17,0.18824387]
[1693507192831,0.07509482,217.41,217.17,0.26332792]
[1693507193031,0.07509482,217.41,217.18,0.18824387]
[1693507193630,0.07509482,217.41,217.18,0.26332792]
[1693507193826,0.07509482,217.41,217.19,0.18824387]
[1693507194030,0.07509482,217.41,217.2,0.18824387]
[1693507194227,0.07509482,217.41,217.18,0.18824387]
[1693507194534,0.07509482,217.41,217.19,0.18813123]
[1693507194735,0.07509482,217.41,217.18,0.18813123]
[1693507194933,0.07509482,217.41,217.19,0.18813123]
[1693507197634,0.07509482,217.42,217.19,0.18813123]
[1693507197838,0.07509482,217.42,217.2,0.18813123]
[1693507198031,0.07509482,217.42,217.18,0.18813123]
[1693507198236,0.07509482,217.42,217.19,0.18812086]
[1693507198436,0.07509482,217.42,217.2,0.18812086]
[1693507198639,0.07509482,217.42,217.18,0.18812086]
[1693507198839,0.07509482,217.42,217.19,0.18812374]
[1693507199041,0.07509482,217.42,217.2,0.18812374]
[1693507199232,0.07509482,217.42,217.18,0.18812374]
[1693507199540,0.07509482,217.42,217.19,0.18812343]
[1693507199835,0.07509482,217.42,217.2,0.18812343]
[1693507200040,0.07509482,217.42,217.17,0.07508405]
[1693507200243,0.07509482,217.42,217.18,0.18812317]
[1693507201841,0.07509482,217.41,217.18,0.18812317]
[1693507212050,0.07509482,217.41,217.18,0.26320722]
[1693507212349,0.07509482,217.41,217.19,0.18812317]
[1693507214450,0.07509482,217.46,217.23,0.07508405]
[1693507214650,0.07509482,217.49,217.24,0.18812317]
[1693507215449,0.07509482,217.5,217.24,0.18812317]
[1693507215752,0.07509482,217.5,217.25,0.18812317]
[1693507215951,0.07509482,217.5,217.26,0.18812317]
[1693507216154,0.07509482,217.5,217.27,0.18812317]
[1693507216352,0.07509482,217.5,217.23,0.18812317]
[1693507216654,0.07509482,217.5,217.24,0.18788424]
[1693507216851,0.07509482,217.51,217.22,0.18788424]
[1693507217052,0.07509482,217.51,217.23,0.18788424]
[1693507217252,0.07509482,217.51,217.22,0.18788424]
[1693507217754,0.07509482,217.51,217.21,0.18788424]
[1693507217955,0.07509482,217.52,217.22,0.18788424]
[1693507218754,0.07509482,217.52,217.21,0.18788424]
[1693507219055,0.07509482,217.53,217.22,0.18788424]
[1693507219255,0.07509482,217.53,217.21,0.18788424]
[1693507219456,0.07509482,217.53,217.22,0.18788424]
[1693507219652,0.07509482,217.53,217.23,0.18788424]
[1693507219853,0.07509482,217.53,217.21,0.18788424]
[1693507220056,0.07509482,217.53,217.22,0.18788424]
[1693507220257,0.07509482,217.53,217.21,0.18788424]
[1693507220556,0.07509482,217.53,217.22,0.18788424]
[1693507220855,0.07509482,217.53,217.23,0.18788424]
[1693507221057,0.07509482,217.53,217.24,0.18788424]
[1693507221357,0.07509482,217.53,217.25,0.18788424]
[1693507221555,0.07509482,217.53,217.26,0.18788424]
[1693507221754,0.07509482,217.53,217.2,0.18788424]
[1693507222056,0.07509482,217.53,217.18,0.07508405]
[1693507222057,0.07509482,217.53,217.21,0.18788424]
[1693507222255,0.07509482,217.53,217.19,0.18788424]
[1693507222454,0.07509482,217.53,217.2,0.18788424]
[1693507222651,0.07509482,217.54,217.19,0.18788424]
[1693507222858,0.07509482,217.54,217.2,0.18788424]
[1693507223257,0.07509482,217.54,217.19,0.18788424]
[1693507223457,0.07509482,217.54,217.2,0.18788424]
[1693507223657,0.07509482,217.54,217.19,0.18788424]
[1693507223858,0.07509482,217.54,217.2,0.18788424]
[1693507224058,0.07509482,217.54,217.21,0.18788424]
[1693507224254,0.07509482,217.54,217.19,0.18788424]
[1693507224457,0.07509482,217.54,217.2,0.18788424]
[1693507224657,0.07509482,217.54,217.19,0.18788424]
[1693507224854,0.07509482,217.54,217.2,0.18788424]
[1693507225158,0.07509482,217.54,217.21,0.18788424]
[1693507225459,0.07509482,217.54,217.22,0.18788424]
[1693507225659,0.07509482,217.54,217.19,0.18788424]
[1693507225859,0.07509482,217.54,217.2,0.18788424]
[1693507226060,0.07509482,217.54,217.21,0.18788424]
[1693507226358,0.07509482,217.54,217.22,0.18788424]
[1693507226554,0.07509482,217.54,217.23,0.18788424]
[1693507226754,0.07509482,217.54,217.24,0.18788424]
[1693507226956,0.07509482,217.54,217.25,0.18788424]
[1693507227156,0.07509482,217.54,217.26,0.18788424]
[1693507227358,0.07509482,217.55,217.27,0.18788424]
[1693507227553,0.07509482,217.55,217.18,0.07508405]
[1693507227762,0.07509482,217.55,217.19,0.18787313]
[1693507228763,0.07509482,217.55,217.18,0.18787313]
[1693507229062,0.07509482,217.55,217.19,0.18787313]
[1693507229262,0.07509482,217.55,217.18,0.18787313]
[1693507229564,0.07509482,217.55,217.19,0.18787313]
[1693507229757,0.07509482,217.55,217.18,0.18787313]
[1693507229960,0.07509482,217.55,217.19,0.18787313]
[1693507230156,0.07509482,217.54,217.18,0.18787313]
[1693507230360,0.14948507,217.56,217.19,0.18787313]
[1693507230361,0.07509482,217.53,217.19,0.18787313]
[1693507230560,0.07509482,217.53,217.17,0.18787313]
[1693507230765,0.07509482,217.53,217.18,0.18787313]
[1693507230959,0.07509482,217.53,217.17,0.18787313]
[1693507231164,0.07509482,217.53,217.18,0.18787313]
[1693507231359,0.07509482,217.53,217.17,0.18787313]
[1693507231562,0.07509482,217.53,217.18,0.18787313]
[1693507231865,0.07509482,217.53,217.16,0.07508405]
[1693507231866,0.07509482,217.53,217.19,0.18787313]
[1693507232059,0.07509482,217.53,217.17,0.18787313]
[1693507232258,0.07509482,217.53,217.18,0.18787313]
[1693507232463,0.07509482,217.53,217.19,0.18787313]
[1693507232762,0.07509482,217.53,217.2,0.18787313]
[1693507232961,0.07509482,217.53,217.21,0.18787313]
[1693507233161,0.07509482,217.53,217.22,0.18787313]
[1693507233459,0.07509482,217.53,217.23,0.18787313]
[1693507233661,0.07509482,217.53,217.24,0.18787313]
[1693507233861,0.07509482,217.53,217.25,0.18787313]
[1693507234063,0.07509482,217.53,217.16,0.07508405]
[1693507234262,0.07509482,217.53,217.17,0.18793848]
[1693507236968,0.07509482,217.52,217.17,0.18793848]
[1693507237473,0.07509482,217.52,217.17,0.26302253]
[1693507237672,0.07509482,217.52,217.18,0.18793848]
[1693507237874,0.07509482,217.53,217.18,0.18793848]
[1693507239073,0.07509482,217.53,217.18,0.26302253]
[1693507239275,0.07509482,217.53,217.19,0.18793848]
[1693507239570,0.07509482,217.53,217.2,0.18793848]
[1693507239775,0.07509482,217.53,217.21,0.18793848]
[1693507239974,0.07509482,217.53,217.22,0.18793848]
[1693507240169,0.07509482,217.53,217.19,0.18793848]
[1693507240372,0.07509482,217.53,217.2,0.18793848]
[1693507240574,0.07509482,217.52,217.19,0.18793848]
[1693507240878,0.07509482,217.52,217.18,0.07508405]
[1693507240879,0.07509482,217.52,217.2,0.18793848]
[1693507241177,0.07509482,217.52,217.21,0.18793848]
[1693507241375,0.07509482,217.52,217.19,0.18793848]
[1693507241572,0.07509482,217.52,217.2,0.18793848]
[1693507243579,0.07509482,217.52,217.2,0.26302253]
[1693507243770,0.07509482,217.52,217.21,0.18793848]
[1693507244577,0.07509482,217.51,217.21,0.18793848]
[1693507245473,0.07509482,217.5,217.21,0.26302253]
[1693507245672,0.07509482,217.5,217.22,0.18793848]
[1693507246578,0.07509482,217.49,217.22,0.26302253]
[1693507246779,0.07509482,217.5,217.23,0.18793848]
[1693507247477,0.07509482,217.49,217.23,0.18793848]
[1693507247678,0.07509482,217.49,217.23,0.26302253]
[1693507247874,0.07509482,217.49,217.24,0.18793848]
[1693507248475,0.07509482,217.47,217.25,0.07508405]
[1693507248678,0.07509482,217.47,217.26,0.18793848]
[1693507255885,0.07509482,217.47,217.26,0.26302253]
[1693507256081,0.07509482,217.47,217.27,0.18793848]
[1693507256485,0.07509482,217.48,217.27,0.18793848]
[1693507258687,0.07509482,217.48,217.28,0.18793848]
[1693507258883,0.07509482,217.48,217.26,0.07508405]
[1693507259090,0.07509482,217.48,217.27,0.18786656]
[1693507259693,0.07509482,217.48,217.26,0.18786656]
[1693507259888,0.07509482,217.48,217.27,0.18786656]
[1693507261590,0.07509482,217.48,217.26,0.18786656]
[1693507261792,0.07509482,217.48,217.27,0.18786656]
[1693507262090,0.07509482,217.48,217.28,0.18786656]
[1693507262293,0.07509482,217.48,217.27,0.18786656]
[1693507262493,0.07509482,217.48,217.28,0.18786451]
[1693507262696,0.07509482,217.48,217.27,0.18786451]
[1693507262896,0.07509482,217.48,217.28,0.18786499]
[1693507263193,0.07509482,217.48,217.25,0.07508405]
[1693507263394,0.07509482,217.48,217.26,0.18786528]
[1693507264794,0.07509482,217.48,217.26,0.26294933]
[1693507264995,0.07509482,217.48,217.27,0.18786528]
[1693507265795,0.07509482,217.48,217.28,0.18786528]
[1693507265994,0.07509482,217.48,217.26,0.18786528]
[1693507266191,0.07509482,217.48,217.27,0.1878733]
[1693507266395,0.07509482,217.48,217.28,0.1878733]
[1693507266596,0.07509482,217.48,217.26,0.26295735]
[1693507266796,0.07509482,217.48,217.27,0.18787378]
[1693507272594,0.07509482,217.47,217.27,0.18787378]
[1693507273001,0.07509482,217.47,217.19,0.15016811]
[1693507273002,0.07509482,217.47,217.26,0.07508405]
[1693507273196,0.07509482,217.47,217.27,0.1878985]
[1693507277106,0.07509482,217.46,217.27,0.1878985]
[1693507277303,0.07509482,217.46,217.25,0.07508405]
[1693507277503,0.07509482,217.46,217.26,0.18791282]
[1693507279806,0.07509482,217.45,217.24,0.07508405]
[1693507280010,0.07509482,217.45,217.25,0.18795438]
[1693507280502,0.07509482,217.46,217.25,0.18795438]
[1693507281802,0.07509482,217.46,217.24,0.18795438]
[1693507282004,0.07509482,217.46,217.25,0.18795438]
[1693507282207,0.07509482,217.46,217.24,0.18795438]
[1693507282401,0.07509482,217.46,217.25,0.18795438]
[1693507282605,0.07509482,217.46,217.24,0.18795438]
[1693507282806,0.07509482,217.46,217.25,0.18795438]
[1693507283005,0.07509482,217.46,217.24,0.18795438]
[1693507283206,0.07509482,217.46,217.25,0.18795438]
[1693507283507,0.07509482,217.46,217.26,0.18795438]
[1693507283703,0.07509482,217.46,217.24,0.18795438]
[1693507283907,0.07509482,217.46,217.25,0.1879405]
[1693507284208,0.07509482,217.46,217.26,0.1879405]
[1693507284408,0.07509482,217.46,217.24,0.1879405]
[1693507284604,0.07509482,217.46,217.25,0.18793998]
[1693507284809,0.07509482,217.46,217.24,0.18793998]
[1693507285008,0.07509482,217.46,217.25,0.18793998]
[1693507285209,0.07509482,217.46,217.24,0.18793998]
[1693507285410,0.07509482,217.47,217.25,0.18793998]
[1693507285605,0.07509482,217.47,217.24,0.18793998]
[1693507285807,0.07509482,217.47,217.25,0.18793998]
[1693507286008,0.07509482,217.47,217.24,0.18793998]
[1693507286311,0.07509482,217.47,217.25,0.18793998]
[1693507286607,0.07509482,217.47,217.26,0.18793998]
[1693507286809,0.07509482,217.47,217.24,0.18793998]
[1693507287006,0.07509482,217.47,217.23,0.07508405]
[1693507287007,0.07509482,217.47,217.25,0.18794228]
[1693507287206,0.07509482,217.47,217.24,0.18794228]
[1693507287409,0.07509482,217.47,217.25,0.18794228]
[1693507287609,0.07509482,217.46,217.24,0.18794228]
[1693507287811,0.07509482,217.46,217.25,0.18794246]
[1693507288013,0.07509482,217.46,217.24,0.18794246]
[1693507288210,0.07509482,217.46,217.25,0.18794293]
[1693507288405,0.07509482,217.47,217.22,0.07508405]
[1693507288607,0.07509482,217.47,217.23,0.18794311]
[1693507290212,0.07509482,217.46,217.23,0.18794311]
[1693507290611,0.07509482,217.47,217.23,0.18794311]
[1693507290911,0.07509482,217.46,217.23,0.18794311]
[1693507292513,0.07509482,217.47,217.23,0.18794311]
[1693507294213,0.07509482,217.46,217.21,0.07508405]
[1693507294413,0.07509482,217.41,217.14,0.07508405]
[1693507294614,0.07509482,217.42,217.15,0.18815791]
[1693507295516,0.07509482,217.43,217.15,0.18815791]
[1693507295716,0.07509482,217.43,217.16,0.18815791]
[1693507295914,0.07509482,217.43,217.17,0.18815791]
[1693507296111,0.07509482,217.43,217.18,0.18815791]
[1693507296309,0.07509482,217.43,217.19,0.18815791]
[1693507296513,0.07509482,217.44,217.14,0.18815791]
[1693507296707,0.07509482,217.44,217.12,0.07508405]
[1693507296708,0.07509482,217.44,217.15,0.18815791]
[1693507296914,0.07509482,217.44,217.16,0.18815791]
[1693507297110,0.07509482,217.44,217.17,0.18815791]
[1693507297310,0.07509482,217.44,217.18,0.18815791]
[1693507297611,0.07509482,217.45,217.19,0.18815791]
[1693507297814,0.07509482,217.45,217.13,0.18815791]
[1693507298118,0.07509482,217.45,217.14,0.18816039]
[1693507298316,0.07509482,217.45,217.13,0.18816039]
[1693507298616,0.07509482,217.45,217.14,0.18816039]
[1693507298812,0.07509482,217.45,217.12,0.18816039]
[1693507299017,0.07509482,217.45,217.13,0.18816039]
[1693507299217,0.07509482,217.45,217.12,0.18816039]
[1693507299416,0.07509482,217.46,217.13,0.18816039]
[1693507299718,0.07509482,217.45,217.14,0.18816039]
[1693507299919,0.07509482,217.46,217.11,0.18816039]
[1693507300118,0.07509482,217.46,217.12,0.18816039]
[1693507300318,0.07509482,217.46,217.11,0.26324444]
[1693507300519,0.07509482,217.46,217.12,0.18816039]
[1693507300719,0.07509482,217.46,217.13,0.18816039]
[1693507300921,0.07509482,217.46,217.14,0.18816039]
[1693507301118,0.07509482,217.46,217.15,0.18816039]
[1693507301316,0.07509482,217.46,217.16,0.18816039]
[1693507301616,0.07509482,217.45,217.17,0.18816039]
[1693507301822,0.07509482,217.45,217.08,0.07508405]
[1693507302120,0.07509482,217.45,217.09,0.18819213]
[1693507303027,0.07509482,217.45,217.1,0.18819213]
[1693507303221,0.07509482,217.45,217.08,0.18819213]
[1693507303421,0.07509482,217.45,217.09,0.18819213]
[1693507303621,0.07509482,217.45,217.08,0.18819213]
[1693507303824,0.07509482,217.45,217.09,0.18819213]
[1693507304021,0.07509482,217.45,217.08,0.18819213]
[1693507304222,0.07509482,217.45,217.09,0.18819213]
[1693507304419,0.07509482,217.45,217.08,0.18819213]
[1693507304623,0.07509482,217.45,217.09,0.18819213]
[1693507304819,0.07509482,217.45,217.07,0.18819213]
[1693507305019,0.07509482,217.45,217.08,0.18819213]
[1693507305219,0.07509482,217.45,217.07,0.18819213]
[1693507305420,0.07509482,217.45,217.08,0.18819213]
[1693507305622,0.07509482,217.45,217.07,0.18819213]
[1693507305823,0.07509482,217.45,217.08,0.18819213]
[1693507306025,0.07509482,217.45,217.07,0.18819213]
[1693507306227,0.07509482,217.44,217.08,0.18819213]
[1693507306422,0.07509482,217.45,217.06,0.18819213]
[1693507306626,0.07509482,217.45,217.07,0.18819213]
[1693507306827,0.07509482,217.45,217.08,0.18819213]
[1693507307022,0.07509482,217.45,217.09,0.18819213]
[1693507307221,0.07509482,217.45,217.05,0.26327618]
[1693507307426,0.07509482,217.45,217.06,0.18819213]
[1693507307727,0.07509482,217.45,217.07,0.18819213]
[1693507307928,0.07509482,217.45,217.05,0.18819213]
[1693507314433,0.07509482,217.45,217.05,0.26327618]
[1693507314630,0.07509482,217.45,217.06,0.18819213]
[1693507317636,0.07509482,217.44,217.06,0.18819213]
[1693507319435,0.07509482,217.44,217.06,0.26327618]
[1693507319636,0.07509482,217.44,217.07,0.18819213]
[1693507320239,0.07509482,217.45,217.07,0.18819213]
[1693507320435,0.07509482,217.44,217.07,0.26327618]
[1693507320635,0.07509482,217.44,217.08,0.18819213]
[1693507322535,0.07509482,217.43,217.08,0.18819213]
[1693507323535,0.07509482,217.43,217.08,0.26327618]
[1693507323738,0.07509482,217.43,217.09,0.18819213]
[1693507324537,0.07509482,217.42,217.09,0.26327618]
[1693507324737,0.07509482,217.42,217.1,0.18819213]
[1693507325640,0.07509482,217.42,217.1,0.26327618]
[1693507325939,0.07509482,217.42,217.11,0.18819213]
[1693507326440,0.07509482,217.41,217.11,0.18819213]
[1693507326639,0.07509482,217.41,217.11,0.26327618]
[1693507326934,0.07509482,217.41,217.12,0.18819213]
[1693507327438,0.07509482,217.39,217.12,0.07508405]
[1693507327734,0.07509482,217.39,217.13,0.18819213]
[1693507328434,0.07509482,217.38,217.13,0.26327618]
[1693507328633,0.07509482,217.38,217.14,0.18819213]
[1693507329439,0.07509482,217.38,217.14,0.26327618]
[1693507329640,0.07509482,217.38,217.07,0.15016811]
[1693507329641,0.07509482,217.37,217.15,0.18819213]
[1693507329837,0.07509482,217.37,217.14,0.18819213]
[1693507330033,0.07509482,217.37,217.15,0.18819213]
[1693507330239,0.07509482,217.37,217.16,0.18819213]
[1693507330441,0.07509482,217.37,217.14,0.18819213]
[1693507330642,0.07509482,217.37,217.15,0.18822094]
[1693507330941,0.07509482,217.37,217.16,0.18822094]
[1693507331141,0.07509482,217.37,217.13,0.07508405]
[1693507331333,0.07509482,217.37,217.14,0.18822021]